bitfinex/quotes_SOLUSD_20251130
["timestamp","ask_amount","ask_price","bid_price","bid_amount"]
[1764488020458,0.71,136.61,136.58,2.07565649]
[1764488020680,0.71,136.61,136.58,2.75565649]
[1764488021984,0.71,136.61,136.58,8.00131984]
[1764488027262,0.71,136.61,136.58,7.32131984]
[1764488027463,2.78565649,136.61,136.57,25.62788313]
[1764488027869,0.71,136.6,136.57,25.62788313]
[1764488028364,0.71,136.6,136.57,26.30788313]
[1764488029788,0.71,136.6,136.57,89.10788311]
[1764488032900,0.71,136.6,136.57,91.1835396]
[1764488033105,0.71,136.6,136.58,8.00124015]
[1764488035304,0.71,136.6,136.58,7.32124015]
[1764488035475,0.71,136.6,136.58,8.03124015]
[1764488038481,0.71,136.61,136.58,8.03124015]
[1764488038675,0.71,136.61,136.59,0.71]
[1764488039083,0.71,136.61,136.58,8.03124015]
[1764488040673,0.71,136.61,136.58,70.83124013]
[1764488049904,8.03045692,136.61,136.58,70.83162056]
[1764488054707,3.24568646,136.59,136.58,62.79999998]
[1764488055104,3.95568646,136.59,136.58,62.79999998]
[1764488056211,11.27686663,136.59,136.58,62.79999998]
[1764488057513,8.80994492,136.58,136.54,63.50999998]
[1764488057716,3.95568646,136.57,136.54,0.71]
[1764488060416,11.27800865,136.57,136.54,0.71]
[1764488062221,8.03232219,136.57,136.54,0.71]
[1764488065203,16.85140352,136.59,136.55,7.32332478]
[1764488065403,0.72,136.58,136.55,7.32332478]
[1764488065603,0.72,136.58,136.56,0.69]
[1764488068205,0.72,136.58,136.55,7.32332478]
[1764488068414,0.72,136.58,136.55,8.01332478]
[1764488069306,0.72,136.58,136.56,0.69]
[1764488070634,0.72,136.58,136.55,7.32332478]
[1764488070635,0.72,136.58,136.55,8.01332478]
[1764488070808,8.04173436,136.58,136.55,0.69]
[1764488071008,0.72,136.58,136.55,8.0132736]
[1764488071507,0.72,136.58,136.56,0.69]
[1764488078731,0.72,136.58,136.54,7.32386113]
[1764488078921,0.72,136.58,136.55,0.69]
[1764488085618,8.04171972,136.58,136.55,0.69]
[1764488088942,11.26171972,136.58,136.55,0.69]
[1764488091049,3.94,136.58,136.55,8.01331645]
[1764488091233,3.94,136.58,136.56,0.69]
[1764488093521,9.52994492,136.62,136.57,3.24568646]
[1764488093748,37.85857189,136.62,136.58,0.69]
[1764488093931,0.72,136.61,136.58,0.69]
[1764488094722,0.72,136.61,136.58,8.01170088]
[1764488097049,0.72,136.61,136.58,7.32170088]
[1764488097242,0.72,136.61,136.59,0.7]
[1764488101832,0.72,136.61,136.58,8.02170088]
[1764488102034,45.84837509,136.62,136.59,0.7]
[1764488102639,45.17837509,136.62,136.59,0.7]
[1764488102951,0.67,136.61,136.59,0.7]
[1764488105147,0.67,136.61,136.59,0.7]
[1764488107047,14.3654231,136.62,136.59,0.7]
[1764488107752,15.0354231,136.62,136.59,0.7]
[1764488109966,11.2098032,136.62,136.59,0.7]
[1764488110268,11.2098032,136.62,136.59,8.0211457]
[1764488110439,11.2098032,136.62,136.6,0.7]
[1764488117162,11.2098032,136.62,136.59,7.3211457]
[1764488117362,11.2098032,136.62,136.59,8.0211457]
[1764488118685,11.2098032,136.62,136.59,7.3211457]
[1764488118895,3.89,136.62,136.6,0.7]
[1764488124525,3.22,136.62,136.6,0.7]
[1764488126402,3.22,136.62,136.6,8.02038134]
[1764488126577,7.04522151,136.64,136.6,8.02038134]
[1764488126781,3.89,136.64,136.61,0.71]
[1764488128793,25.88816681,136.64,136.61,8.03002869]
[1764488129487,0.67,136.63,136.6,0.71]
[1764488131101,7.98907408,136.63,136.6,0.71]
[1764488133198,7.98907408,136.63,136.59,62.79999998]
[1764488133199,0.67,136.62,136.59,62.79999998]
[1764488133397,0.67,136.62,136.59,63.50999998]
[1764488135222,11.20966013,136.62,136.59,63.50999998]
[1764488135715,11.20966013,136.62,136.59,0.71]
[1764488139525,3.22,136.62,136.59,10.10764861]
[1764488139700,11.20878828,136.64,136.59,10.10764861]
[1764488139894,11.20878828,136.64,136.6,2.78694401]
[1764488139895,0.67,136.63,136.6,2.78694401]
[1764488140412,0.67,136.63,136.61,0.71]
[1764488141921,10.53852724,136.64,136.61,0.71]
[1764488142094,11.20852724,136.64,136.61,0.71]
[1764488144624,33.20669405,136.64,136.61,0.71]
[1764488145119,0.67,136.63,136.61,0.71]
[1764488145696,0.67,136.63,136.6,70.12036646]
[1764488145898,0.67,136.63,136.6,70.83036646]
[1764488146320,7.98905115,136.63,136.6,70.83036646]
[1764488149102,7.98905115,136.63,136.61,0.71]
[1764488149542,7.98905115,136.63,136.6,70.83036646]
[1764488150106,7.98905115,136.63,136.6,63.50999998]
[1764488151424,7.98905115,136.63,136.6,62.79999998]
[1764488151604,7.98905115,136.63,136.61,0.71]
[1764488152017,7.98905115,136.63,136.6,62.79999998]
[1764488152205,7.98905115,136.63,136.6,63.50999998]
[1764488153136,7.98905115,136.63,136.6,62.79999998]
[1764488153337,7.98905115,136.63,136.61,0.71]
[1764488154550,0.67,136.62,136.6,63.50999998]
[1764488155237,7.31905115,136.63,136.6,63.50999998]
[1764488155430,7.98905115,136.63,136.6,63.50999998]
[1764488156149,7.98905115,136.63,136.61,0.72]
[1764488157013,2.74694401,136.62,136.58,63.51999998]
[1764488157212,2.74694401,136.62,136.57,3.22]
[1764488157213,2.07694401,136.61,136.57,3.22]
[1764488157435,2.07694401,136.6,136.57,0.72]
[1764488157625,2.74694401,136.6,136.57,0.72]
[1764488157931,0.67,136.59,136.57,0.72]
[1764488158130,0.67,136.59,136.56,62.79999998]
[1764488158328,2.74694401,136.59,136.55,0.72]
[1764488158537,5.29694401,136.58,136.54,0.72]
[1764488158714,27.96995108,136.58,136.54,0.72]
[1764488159055,7.99250257,136.57,136.54,0.72]
[1764488159575,10.06944658,136.57,136.54,0.72]
[1764488159723,9.39944658,136.57,136.54,0.72]
[1764488160040,0.67,136.56,136.54,0.72]
[1764488161316,7.99279895,136.56,136.53,0.72]
[1764488161719,11.21279895,136.56,136.53,0.72]
[1764488162544,11.21279895,136.56,136.53,63.51999998]
[1764488163423,0.67,136.55,136.52,70.84464896]
[1764488163618,0.67,136.55,136.5,20.39138626]
[1764488163619,5.29694401,136.54,136.5,8.04562945]
[1764488163825,25.22946406,136.54,136.51,0.72]
[1764488164053,3.89,136.54,136.51,0.72]
[1764488164621,10.54420767,136.54,136.51,0.72]
[1764488164838,10.54420767,136.54,136.51,3.96851508]
[1764488165228,3.22,136.54,136.52,0.72]
[1764488165542,7.32353448,136.55,136.52,0.72]
[1764488165850,7.99353448,136.55,136.52,0.72]
[1764488167034,7.32353448,136.55,136.52,0.72]
[1764488167534,7.99353448,136.55,136.52,0.72]
[1764488174348,7.32353448,136.55,136.52,0.72]
[1764488174578,0.67,136.54,136.52,0.72]
[1764488174933,17.89751313,136.55,136.52,0.72]
[1764488175132,18.56751313,136.55,136.52,0.72]
[1764488180856,7.99353448,136.55,136.52,0.72]
[1764488186769,8.00353448,136.55,136.52,0.72]
[1764488188962,30.01622846,136.55,136.52,0.72]
[1764488190851,8.00353448,136.55,136.52,0.72]
[1764488191664,25.23269398,136.56,136.52,8.04484374]
[1764488191872,3.22,136.56,136.53,3.96851508]
[1764488192078,22.68946406,136.57,136.53,66.76851506]
[1764488192278,0.68,136.57,136.54,0.72]
[1764488194257,0.68,136.57,136.54,8.04383027]
[1764488194460,0.68,136.57,136.54,70.84383025]
[1764488194679,32.55157171,136.58,136.55,0.72]
[1764488194872,11.22210765,136.58,136.55,0.72]
[1764488195385,10.54210765,136.58,136.55,0.72]
[1764488195567,0.68,136.57,136.55,0.72]
[1764488195764,10.54210765,136.58,136.55,0.72]
[1764488195765,3.22,136.58,136.56,3.24851508]
[1764488195967,22.68623509,136.6,136.57,0.72]
[1764488196275,0.68,136.6,136.57,0.72]
[1764488197978,8.00066565,136.6,136.57,0.72]
[1764488198481,0.68,136.59,136.57,0.72]
[1764488210699,14.46979971,136.59,136.56,62.79999998]
[1764488210890,8.80994492,136.56,136.53,18.30831197]
[1764488211093,30.82102382,136.58,136.53,18.30831197]
[1764488211094,6.46851508,136.55,136.53,18.30831197]
[1764488211400,6.46851508,136.55,136.51,0.72]
[1764488211401,24.77682705,136.55,136.51,0.72]
[1764488211595,0.68,136.54,136.51,0.72]
[1764488212595,0.68,136.54,136.51,8.04543371]
[1764488212978,8.00386822,136.54,136.49,27.57504104]
[1764488213283,8.00386822,136.54,136.5,3.96851508]
[1764488213600,0.68,136.53,136.5,3.96851508]
[1764488213903,0.68,136.53,136.51,0.72]
[1764488214498,7.32386822,136.54,136.51,0.72]
[1764488214685,8.00386822,136.54,136.51,0.72]
[1764488216481,7.32386822,136.54,136.51,0.72]
[1764488216800,0.72,136.53,136.51,0.72]
[1764488221212,8.04386822,136.54,136.51,0.72]
[1764488224415,8.04386822,136.54,136.51,3.96851508]
[1764488225207,8.04386822,136.54,136.51,0.72]
[1764488225709,28.85173625,136.55,136.51,11.29371458]
[1764488225898,10.54342428,136.55,136.51,8.0451995]
[1764488226102,11.26342428,136.55,136.52,0.66]
[1764488226301,11.26342428,136.55,136.52,3.90851508]
[1764488226600,7.32342428,136.55,136.52,2.73838535]
[1764488226802,7.32342428,136.55,136.53,0.66]
[1764488228012,8.04342428,136.55,136.53,0.66]
[1764488229118,7.32342428,136.55,136.53,0.66]
[1764488230516,0.72,136.6,136.54,2.07838535]
[1764488230715,0.72,136.6,136.56,2.07838535]
[1764488230716,3.94,136.6,136.56,2.07838535]
[1764488231012,3.94,136.6,136.57,0.66]
[1764488232415,0.72,136.59,136.57,0.66]
[1764488232594,10.540667,136.6,136.57,0.66]
[1764488232794,11.260667,136.6,136.57,0.66]
[1764488233832,0.72,136.59,136.57,0.66]
[1764488237205,0.72,136.59,136.56,0.66]
[1764488237401,10.11964226,136.59,136.55,62.79999998]
[1764488237920,2.79838535,136.58,136.55,62.79999998]
[1764488238120,3.22,136.57,136.55,62.79999998]
[1764488238295,3.94,136.57,136.53,72.86240102]
[1764488238497,0.72,136.56,136.53,72.86240102]
[1764488238920,0.72,136.56,136.53,70.78401567]
[1764488239109,0.72,136.56,136.53,72.86240102]
[1764488239909,8.04306745,136.56,136.52,0.66]
[1764488240307,0.72,136.55,136.52,0.66]
[1764488240708,0.72,136.55,136.52,2.73838535]
[1764488240923,0.72,136.55,136.53,0.66]
[1764488244937,7.32306745,136.56,136.53,0.66]
[1764488245121,7.99306745,136.56,136.53,0.66]
[1764488247936,0.69,136.55,136.53,0.66]
[1764488248318,8.01306745,136.56,136.53,0.66]
[1764488250235,0.69,136.56,136.53,7.98430228]
[1764488250535,0.69,136.56,136.54,0.71]
[1764488252950,8.01282784,136.56,136.53,7.32430228]
[1764488253246,8.01282784,136.56,136.53,0.71]
[1764488253821,0.69,136.55,136.53,0.71]
[1764488256339,8.01282784,136.56,136.53,0.71]
[1764488258132,0.69,136.55,136.53,0.71]
[1764488258538,8.01282784,136.56,136.53,0.71]
[1764488262446,0.69,136.55,136.53,0.71]
[1764488262830,7.32282784,136.56,136.53,0.71]
[1764488263426,8.01282784,136.56,136.53,0.71]
[1764488270359,8.01282784,136.56,136.53,8.03436383]
[1764488270548,8.01282784,136.56,136.54,0.71]
[1764488270849,8.01282784,136.56,136.53,7.32436383]
[1764488271029,0.69,136.55,136.53,0.71]
[1764488271226,8.01282784,136.56,136.53,0.71]
[1764488273752,8.01282784,136.56,136.53,8.03437005]
[1764488275550,0.69,136.56,136.53,8.03437005]
[1764488276257,0.69,136.56,136.53,7.32437005]
[1764488276435,0.69,136.56,136.53,8.04437005]
[1764488280541,8.01281807,136.56,136.54,0.72]
[1764488282162,11.14900082,136.58,136.54,10.12206638]
[1764488282361,7.32212776,136.58,136.54,10.12206638]
[1764488282552,7.32212776,136.58,136.55,0.72]
[1764488282951,8.04212776,136.58,136.55,2.79838535]
[1764488283153,8.04212776,136.58,136.56,0.72]
[1764488283462,7.32212776,136.58,136.54,72.92206636]
[1764488283639,0.72,136.57,136.55,0.72]
[1764488283842,8.04212776,136.58,136.55,0.72]
[1764488285465,8.04212776,136.58,136.55,8.04331673]
[1764488287844,8.04212776,136.58,136.55,7.32331673]
[1764488288144,8.04212776,136.58,136.56,0.72]
[1764488288645,7.32212776,136.58,136.56,0.72]
[1764488289750,8.04212776,136.58,136.56,0.72]
[1764488290064,0.72,136.58,136.56,0.72]
[1764488293173,19.35127933,136.59,136.56,0.72]
[1764488293351,20.07127933,136.59,136.56,0.72]
[1764488295668,0.72,136.58,136.56,0.72]
[1764488295973,3.22,136.59,136.56,70.84270813]
[1764488296282,3.94,136.59,136.56,70.84270813]
[1764488296474,3.94,136.59,136.57,0.72]
[1764488297885,3.94,136.59,136.57,8.04215381]
[1764488299183,3.94,136.59,136.57,0.72]
[1764488300383,0.72,136.58,136.56,70.12253573]
[1764488300764,0.72,136.58,136.56,70.84253573]
[1764488301284,3.91,136.59,136.56,70.84253573]
[1764488305772,3.91,136.59,136.57,0.65]
[1764488306687,0.72,136.58,136.56,70.12253573]
[1764488306880,0.72,136.58,136.56,70.77253573]
[1764488307080,3.94,136.59,136.56,70.12253573]
[1764488307283,3.94,136.59,136.57,0.65]
[1764488308280,3.22,136.59,136.56,70.12253573]
[1764488308481,0.72,136.58,136.56,70.77253573]
[1764488308888,3.94,136.59,136.56,70.77253573]
[1764488309075,3.94,136.59,136.57,0.65]
[1764488311595,0.72,136.59,136.57,0.65]
[1764488322994,27.59613319,136.6,136.57,0.65]
[1764488324592,26.87613319,136.6,136.57,0.65]
[1764488324795,0.72,136.59,136.57,0.65]
[1764488325476,26.87613319,136.6,136.57,0.65]
[1764488325794,27.59613319,136.6,136.57,0.65]
[1764488327395,0.72,136.59,136.57,0.65]
[1764488330210,0.72,136.59,136.57,7.972246]
[1764488330809,27.59613319,136.6,136.57,7.972246]
[1764488331203,26.87613319,136.6,136.57,7.972246]
[1764488331404,0.72,136.59,136.57,7.972246]
[1764488340789,19.55546809,136.6,136.58,0.69]
[1764488341014,11.22036813,136.61,136.58,0.69]
[1764488341221,30.77583622,136.61,136.58,0.69]
[1764488342231,30.77583622,136.61,136.58,8.01169697]
[1764488342524,30.77583622,136.61,136.59,0.69]
[1764488345926,23.45546809,136.61,136.59,8.0111305]
[1764488346106,3.9,136.61,136.59,8.0111305]
[1764488347822,22.68139342,136.62,136.6,0.69]
[1764488348223,22.68139342,136.62,136.59,8.0111305]
[1764488348738,0.68,136.61,136.59,8.0111305]
[1764488354342,22.68139342,136.62,136.59,8.0111305]
[1764488354941,22.00139342,136.62,136.6,0.69]
[1764488355113,3.9,136.63,136.6,2.76686757]
[1764488355311,25.89978,136.63,136.61,0.69]
[1764488357836,0.68,136.64,136.62,7.31957253]
[1764488358137,0.68,136.64,136.62,7.49187253]
[1764488358311,0.68,136.64,136.62,0.69]
[1764488359749,10.53988814,136.65,136.62,0.69]
[1764488359942,11.21988814,136.65,136.62,0.69]
[1764488360338,11.21988814,136.65,136.62,8.00947229]
[1764488361336,7.31748347,136.66,136.63,0.68]
[1764488361638,28.26074173,136.66,136.63,0.68]
[1764488365718,20.23325826,136.66,136.63,10.07566482]
[1764488365924,0.1,136.67,136.63,72.87566482]
[1764488366153,0.78,136.67,136.64,0.7]
[1764488367034,0.1,136.67,136.64,8.01824343]
[1764488367423,0.1,136.67,136.65,0.7]
[1764488370356,0.78,136.67,136.65,0.7]
[1764488370952,0.78,136.67,136.64,70.81824343]
[1764488371148,0.78,136.67,136.64,70.11824343]
[1764488371326,0.78,136.67,136.65,0.7]
[1764488378750,0.78,136.67,136.64,70.11824343]
[1764488379163,0.78,136.67,136.64,70.81824343]
[1764488380758,10.17403995,136.67,136.64,62.8]
[1764488381054,2.07686757,136.65,136.61,0.7]
[1764488381555,0.68,136.64,136.61,8.02007911]
[1764488382165,24.75503438,136.64,136.6,63.5]
[1764488382348,24.75503438,136.64,136.61,0.7]
[1764488382537,0.68,136.63,136.61,0.7]
[1764488384653,0.68,136.63,136.61,0.7]
[1764488387361,0.68,136.63,136.6,70.1205111]
[1764488387539,0.68,136.63,136.6,70.8205111]
[1764488388445,6.26119071,136.63,136.58,0.7]
[1764488388648,2.07686757,136.62,136.58,0.7]
[1764488388848,24.75826099,136.62,136.58,0.7]
[1764488389045,0.68,136.61,136.58,0.7]
[1764488389366,0.68,136.61,136.58,70.82160238]
[1764488390268,8.00011971,136.61,136.58,63.5]
[1764488390959,0.68,136.6,136.58,63.5]
[1764488393343,0.68,136.6,136.58,62.8]
[1764488393758,0.68,136.6,136.58,63.5]
[1764488394250,8.00075824,136.6,136.58,62.8]
[1764488394448,11.22075824,136.6,136.58,62.8]
[1764488394650,0.68,136.59,136.58,62.8]
[1764488395466,22.68462097,136.59,136.58,62.8]
[1764488395840,22.68462097,136.59,136.56,0.7]
[1764488395841,30.00580114,136.59,136.56,0.7]
[1764488396046,0.71,136.58,136.55,0.69]
[1764488396249,0.71,136.58,136.55,63.49]
[1764488396448,0.71,136.58,136.55,0.69]
[1764488396648,22.71784946,136.58,136.55,0.69]
[1764488397369,7.32225232,136.57,136.55,0.69]
[1764488398669,8.03188059,136.58,136.55,0.69]
[1764488398874,26.41761216,136.58,136.55,0.69]
[1764488400473,25.70761216,136.58,136.55,2.76686757]
[1764488400776,7.32188059,136.58,136.56,0.69]
[1764488401556,8.03188059,136.58,136.56,0.69]
[1764488402968,0.71,136.57,136.54,70.81381591]
[1764488403280,0.71,136.57,136.55,0.69]
[1764488403877,0.71,136.57,136.54,62.8]
[1764488404080,0.71,136.57,136.54,63.49]
[1764488404387,22.71946406,136.57,136.54,63.49]
[1764488404686,0.71,136.56,136.54,63.49]
[1764488405389,29.33204187,136.57,136.54,63.49]
[1764488405593,30.04204187,136.57,136.54,63.49]
[1764488407258,29.33204187,136.57,136.54,63.49]
[1764488407457,0.71,136.56,136.54,63.49]
[1764488408983,30.04204187,136.57,136.54,0.69]
[1764488409986,29.33204187,136.57,136.54,0.69]
[1764488410185,0.71,136.56,136.54,0.69]
[1764488410766,29.33204187,136.57,136.54,0.69]
[1764488410767,30.04204187,136.57,136.54,0.69]
[1764488412965,30.04204187,136.57,136.54,3.93738385]
[1764488414839,30.04204187,136.57,136.55,0.69]
[1764488415259,8.03257781,136.57,136.55,0.69]
[1764488416090,8.03257781,136.57,136.54,3.93738385]
[1764488416268,8.03257781,136.57,136.54,3.24738385]
[1764488416470,8.03257781,136.57,136.55,0.69]
[1764488416773,3.22,136.58,136.56,3.24738385]
[1764488417171,3.22,136.58,136.56,3.93738385]
[1764488417389,3.22,136.58,136.56,0.69]
[1764488420393,3.22,136.58,136.56,3.93738385]
[1764488420789,3.93,136.58,136.56,3.93738385]
[1764488422498,3.93,136.58,136.56,0.69]
[1764488424201,0.68,136.57,136.55,63.51]
[1764488424398,33.22991552,136.58,136.55,63.51]
[1764488426676,33.22991552,136.58,136.55,0.71]
[1764488427901,0.67,136.57,136.55,0.71]
[1764488431481,11.21206606,136.58,136.55,0.71]
[1764488431683,10.54206606,136.58,136.55,0.71]
[1764488431882,0.67,136.57,136.55,0.71]
[1764488433188,7.9922749,136.57,136.55,0.71]
[1764488434285,7.9922749,136.57,136.55,0.66]
[1764488434973,7.9922749,136.57,136.54,63.46]
[1764488435577,7.9922749,136.57,136.54,66.70738385]
[1764488436804,0.67,136.56,136.52,0.66]
[1764488437101,3.22,136.55,136.5,73.37307442]
[1764488437318,3.22,136.55,136.51,0.66]
[1764488437506,0.67,136.54,136.51,0.66]
[1764488439396,7.99419768,136.54,136.51,0.66]
[1764488440910,0.67,136.53,136.51,0.66]
[1764488441115,0.67,136.53,136.5,11.23337591]
[1764488441412,7.32493407,136.52,136.5,0.66]
[1764488441907,7.99493407,136.52,136.5,3.90738385]
[1764488442109,7.32493407,136.52,136.5,3.90738385]
[1764488442312,7.32493407,136.52,136.51,0.66]
[1764488442712,7.32493407,136.52,136.5,3.90738385]
[1764488442900,0.67,136.53,136.51,3.90738385]
[1764488443393,0.67,136.53,136.51,0.66]
[1764488443606,0.67,136.53,136.51,3.90738385]
[1764488443809,7.32432305,136.54,136.51,3.90738385]
[1764488444110,7.99432305,136.54,136.51,3.90738385]
[1764488444304,7.32432305,136.54,136.51,3.90738385]
[1764488444506,0.67,136.53,136.51,0.66]
[1764488444710,7.99432305,136.54,136.51,0.66]
[1764488446211,7.99432305,136.54,136.51,3.90738385]
[1764488446417,11.21362305,136.55,136.52,3.24738385]
[1764488446591,11.21362305,136.55,136.52,3.90738385]
[1764488447485,10.54362305,136.55,136.52,3.90738385]
[1764488447687,0.67,136.54,136.52,3.90738385]
[1764488450791,10.54362305,136.55,136.52,3.90738385]
[1764488451296,11.21362305,136.55,136.52,3.90738385]
[1764488453224,7.99387139,136.54,136.52,3.24738385]
[1764488453514,7.32387139,136.54,136.53,0.66]
[1764488453906,7.32387139,136.54,136.52,3.24738385]
[1764488454103,7.32387139,136.54,136.52,3.90738385]
[1764488457216,7.32387139,136.54,136.52,0.66]
[1764488460506,7.32387139,136.54,136.51,0.7]
[1764488460709,3.92,136.53,136.5,62.8]
[1764488461320,0.7,136.52,136.5,63.5]
[1764488461717,8.0250025,136.52,136.5,63.5]
[1764488462420,8.0250025,136.52,136.5,0.7]
[1764488463111,8.0250025,136.52,136.5,3.94738385]
[1764488463315,7.3250025,136.52,136.5,0.7]
[1764488463837,8.0250025,136.52,136.5,0.7]
[1764488466131,8.0250025,136.52,136.49,90.382549]
[1764488467026,0.7,136.52,136.49,90.382549]
[1764488468320,0.7,136.52,136.5,0.7]
[1764488468937,11.24456822,136.53,136.5,0.7]
[1764488470030,10.54456822,136.53,136.5,0.7]
[1764488470237,11.24456822,136.53,136.5,0.7]
[1764488470534,11.24456822,136.53,136.5,2.77948662]
[1764488471110,3.22,136.53,136.51,2.77948662]
[1764488472017,3.92,136.53,136.51,0.7]
[1764488472217,3.22,136.53,136.51,0.7]
[1764488473144,29.33566439,136.56,136.52,2.07948662]
[1764488473342,3.92,136.55,136.52,2.07948662]
[1764488473544,3.92,136.55,136.52,2.77948662]
[1764488474423,11.24348935,136.55,136.52,2.77948662]
[1764488474936,11.24348935,136.55,136.52,0.7]
[1764488478142,11.24348935,136.55,136.52,2.77948662]
[1764488479941,11.24348935,136.55,136.52,2.07948662]
[1764488480249,11.24348935,136.55,136.52,2.77948662]
[1764488481551,11.24348935,136.55,136.53,0.66]
[1764488483848,7.32288621,136.56,136.53,2.73948662]
[1764488484258,8.02288621,136.56,136.53,2.73948662]
[1764488484921,8.02288621,136.56,136.53,2.07948662]
[1764488485127,8.02288621,136.56,136.54,0.66]
[1764488486222,0.67,136.55,136.53,2.74948662]
[1764488486428,0.67,136.55,136.53,0.67]
[1764488493365,0.67,136.55,136.53,2.74948662]
[1764488502451,0.67,136.55,136.53,0.67]
[1764488506568,3.89,136.55,136.53,0.67]
[1764488509370,7.32231723,136.57,136.54,2.07948662]
[1764488509570,7.32231723,136.57,136.55,2.07948662]
[1764488509571,3.22,136.57,136.55,2.07948662]
[1764488509969,3.22,136.57,136.55,2.74948662]
[1764488511172,3.22,136.57,136.55,0.67]
[1764488513975,3.89,136.57,136.55,0.67]
[1764488514173,0.67,136.56,136.54,62.8]
[1764488514562,0.67,136.56,136.54,63.47]
[1764488514763,0.67,136.56,136.54,62.8]
[1764488516160,7.99282911,136.56,136.54,62.8]
[1764488517782,7.99282911,136.56,136.54,63.46]
[1764488518579,7.99282911,136.56,136.54,62.8]
[1764488518779,7.99282911,136.56,136.53,63.46]
[1764488520384,0.67,136.56,136.53,70.78421429]
[1764488520879,2.07948662,136.54,136.49,7.9863906]
[1764488521082,3.22,136.53,136.49,7.9863906]
[1764488521378,3.93,136.53,136.49,7.9863906]
[1764488521567,0.71,136.52,136.49,7.9863906]
[1764488521764,0.71,136.52,136.5,0.66]
[1764488522165,11.25462764,136.53,136.5,0.66]
[1764488524273,0.71,136.52,136.5,0.66]
[1764488525881,11.25462764,136.53,136.5,0.66]
[1764488526764,10.55245324,136.53,136.5,0.66]
[1764488529365,0.71,136.52,136.5,0.66]
[1764488532187,0.71,136.52,136.49,70.1263906]
[1764488532598,8.03495239,136.52,136.48,63.66]
[1764488532889,17.87740563,136.52,136.48,63.66]
[1764488533084,0.71,136.51,136.48,63.66]
[1764488533291,0.71,136.51,136.48,0.86]
[1764488533597,8.03570398,136.51,136.48,0.86]
[1764488535276,0.71,136.5,136.48,0.86]
[1764488535870,8.0360231,136.5,136.48,0.86]
[1764488536292,8.0360231,136.5,136.48,0.2]
[1764488536968,0.71,136.49,136.48,0.2]
[1764488537167,9.80426806,136.49,136.48,0.2]
[1764488537389,31.82827422,136.49,136.48,0.2]
[1764488537774,39.15481828,136.49,136.48,0.2]
[1764488539485,42.404088,136.49,136.48,0.2]
[1764488539698,25.40313206,136.47,136.46,0.2]
[1764488539879,31.87240178,136.47,136.46,0.2]
[1764488540079,32.58240178,136.47,136.46,0.2]
[1764488540401,32.2703131,136.47,136.46,0.2]
[1764488541797,39.59793089,136.47,136.46,0.2]
[1764488542299,7.997246,136.48,136.46,0.92]
[1764488542669,10.93378015,136.48,136.46,0.92]
[1764488543298,0.67,136.47,136.46,0.2]
[1764488543499,10.26378015,136.48,136.46,0.2]
[1764488543673,10.93378015,136.48,136.46,0.2]
[1764488544475,0.67,136.47,136.46,0.2]
[1764488545177,10.93378015,136.48,136.46,0.2]
[1764488545379,10.95378015,136.48,136.46,0.2]
[1764488546397,7.327246,136.48,136.46,0.88]
[1764488546777,32.57072559,136.49,136.47,0.68]
[1764488546979,10.54671943,136.49,136.47,0.68]
[1764488547797,11.23671943,136.49,136.47,0.68]
[1764488550404,21.93325194,136.5,136.47,0.68]
[1764488550588,7.3262091,136.5,136.47,0.68]
[1764488551692,8.0162091,136.5,136.47,0.68]
[1764488561406,8.0162091,136.5,136.47,3.92926972]